Cogmind - Beta 13 @@@ ROGUE MODE // 2024.04.25 @ 20:32:06 Player: yantz Result: Destroyed by Y-45 Defender with Beam Rifle Performance ------------- Evolutions (2) 1000 Regions Visited (6) 1200 Robots Destroyed (44) 220 Value Destroyed (1371) 1371 Prototype IDs (2) 40 Alien Tech Used (0) 0 Bonus (300) 300 TOTAL SCORE: 4131 Bonus ------- Aligned with FarCom 300 Cogmind --------- Core Integrity 0/550 Matter 187/300 Energy 100/100 System Corruption 4% Temperature Cool (9) Movement Core (100) Ox1 Location -8/Materials Parts ------- > --- POWER (2) -------- (None) > --- PROPULSION (2) --- (None) > --- UTILITY (4) ------ Improved Terrain Scanner Hacking Suite > --- WEAPON (3) ------- Gauss Rifle > --- INVENTORY (5) ---- Heat Sink Core Shielding Great Maul Peak State ------------ > --- POWER ------------ Light Angular Momentum Engine > --- PROPULSION ------- Carbon-fiber Leg > --- UTILITY ---------- Small Storage Unit Improved Terrain Scanner Hardlight Generator Hacking Suite > --- WEAPON ----------- YOLO Cannon Great Maul > --- INVENTORY -------- Improved Deuterium Engine Heat Sink Core Shielding Gauss Rifle [Rating: 42] Favorites ----------- Power Improved Ion Engine Engine Improved Ion Engine Power Core Light Nuclear Core Propulsion Aluminum Leg Leg Aluminum Leg Wheel Compact Wheel Utility Small Storage Unit Device Structural Scanner Storage Small Storage Unit Hackware Hacking Suite Protection Core Shielding Weapon Katana Energy Gun Particle Gun Energy Cannon YOLO Cannon Ballistic Gun Heavy Assault Rifle Ballistic Cannon Assault Cannon Launcher Rocket Launcher Impact Weapon Great Maul Slashing Weapon Katana Build | -11 -10 -9 -9 -9 -8 -8 ------- Run | Yrd Mat Mat Min Exi Min Mat Slots Evolved 4 | . . 2 . . . 2 Power 1 | . . . . . . 1 Propulsion . | . . . . . . . Utility 2 | . . 2 . . . . Weapon 1 | . . . . . . 1 Parts Attached 55 | 6 4 5 5 2 19 14 Power 8 | 1 . . 2 . 1 4 Engine 7 | 1 . . 2 . . 4 Core 1 | . . . . . 1 . Reactor . | . . . . . . . Propulsion 10 | 2 1 2 1 . 2 2 Treads . | . . . . . . . Leg 8 | 2 1 2 1 . . 2 Wheel 2 | . . . . . 2 . Hover . | . . . . . . . Flight . | . . . . . . . Utility 13 | 1 2 2 1 . 4 3 Device 9 | . 1 2 1 . 3 2 Storage 2 | 1 . . . . 1 . Processor . | . . . . . . . Hackware 1 | . . . . . . 1 Protection 1 | . 1 . . . . . Artifact . | . . . . . . . Weapon 24 | 2 1 1 1 2 12 5 Energy Gun 4 | 1 1 . . . 2 . Energy Cannon 3 | . . . . 1 1 1 Ballistic Gun 6 | 1 . 1 . . 2 2 Ballistic Cannon 3 | . . . . . 2 1 Launcher 2 | . . . 1 . 1 . Special Weapon . | . . . . . . . Impact Weapon 2 | . . . . . 1 1 Slashing Weapon 4 | . . . . 1 3 . Piercing Weapon . | . . . . . . . Special Melee Weapon . | . . . . . . . Unidentified Prototypes 2 | . . . 1 1 . . Parts Lost 27 | . 1 2 1 . 10 13 Power 5 | . . 1 . . 1 3 Propulsion 5 | . . . . . 3 2 Utility 8 | . . 1 . . 3 4 Weapon 9 | . 1 . 1 . 3 4 Highest Loss Streak 6 | . 1 2 1 . 4 6 To Critical Strikes . | . . . . . . . Average Slot Usage (%) 88 | . 97 99 91 97 87 64 Engine 7 | . 14 11 10 11 . 6 Core 2 | . . . . . 9 . Leg 15 | . 28 22 22 22 3 8 Wheel 3 | . . . . . 14 . Device 23 | . 9 32 25 31 27 13 Storage 11 | . 14 11 11 11 11 8 Hackware 1 | . . . . . . 7 Energy Gun 5 | . 13 11 8 . 2 4 Energy Cannon 1 | . . . . . 1 3 Ballistic Gun 8 | . 14 11 11 10 3 4 Slashing Weapon 5 | . . . . 9 9 4 Naked Turns . | . . . . . . . Heaviest Build 43 | 11 13 18 23 33 34 43 Greatest Support 26 | 20 20 23 23 23 26 15 Greatest Overweight (x) 7 | . . . . 1 5 7 Average Overweight (x) . | . . . . . . 1 Largest Inventory Capacity 8 | 8 8 8 8 8 8 8 Average Capacity 7 | 7 8 8 8 8 8 7 Most Carried 8 | 5 5 5 7 8 8 8 Average Carried 5 | . 2 3 5 6 6 5 Final Capacity 8 | 8 8 8 8 8 8 5 Final Carried 8 | . 4 4 5 7 8 3 Class Distribution -------------------- 61% | Mutant 27% | Scavenger-Assassin 4% | Assassin 3% | Scavenger-Skirmisher Dominant Class ---------------- Mutant | -10/Materials Mutant | -9/Materials Mutant | -9/Mines Mutant | -9/Exiles Scavenger-Assassin | -8/Mines Scavenger-Assassin | -8/Materials Resources | -11 -10 -9 -9 -9 -8 -8 ----------- Run | Yrd Mat Mat Min Exi Min Mat Matter Collected 923 | 221 44 116 123 . 285 134 Remotely . | . . . . . . . Salvage Created 1490 | . 160 198 383 . 520 229 Parts 97 | . 15 13 22 . 23 24 Haulers Intercepted . | . . . . . . . Recyclers Shooed 1 | . . . . . . 1 Parts Field Recycled . | . . . . . . . Retrieved Matter . | . . . . . . . Parts Self-Destructed . | . . . . . . . Prevented . | . . . . . . . Kills | -11 -10 -9 -9 -9 -8 -8 ------- Run | Yrd Mat Mat Min Exi Min Mat Combat Hostiles Destroyed 32 | . 2 4 8 . 12 6 Melee 4 | . . . . . 4 . Guns 19 | . 2 4 7 . 1 5 Cannons 2 | . . . . . 1 1 AOE 7 | . . . 1 . 6 . Classes Destroyed 12 | . 3 2 2 . 1 4 Worker 5 | . . 1 2 . 1 1 Builder 1 | . . . . . . 1 Tunneler 1 | . . . . . 1 . Recycler 2 | . 1 . . . 1 . Operator 1 | . 1 . . . . . Watcher 2 | . . 1 . . . 1 Swarmer 3 | . . . . . . 3 Grunt 23 | . 2 4 6 . 11 . Brawler 1 | . . . 1 . . . Duelist 2 | . . . 1 . 1 . Sentry 2 | . . . . . . 2 Hunter 1 | . . . . . . 1 Best Kill Streak 4 | . 2 3 4 . 4 3 Combat Bots Only 4 | . 2 2 3 . 4 3 Max Kills in Single Turn 3 | . 1 1 1 . 3 2 Gunslinging . | . . . . . . . Exploded 3 | . . . 1 . 3 . Melee 1 | . . . . . 1 . Uniques/NPCs Destroyed . | . . . . . . . Combat | -11 -10 -9 -9 -9 -8 -8 -------- Run | Yrd Mat Mat Min Exi Min Mat Hostile Shots Fired 247 | . 21 36 21 . 77 92 Missed 67 | . 6 8 7 . 20 26 Damage Taken 2824 | . 213 332 181 . 1082 1016 Core 749 | . 23 34 11 . 284 397 Absorbed by Shields 4 | . . . . . . 4 Redirected to Shielding 5 | . 5 . . . . . Core Remaining (%) 69 | 100 90 . . . 17 . Volleys Fired 118 | . 19 17 18 . 23 41 Largest 2 | . 2 2 2 . 2 2 Hottest 135 | . 85 88 88 . 100 135 Shots Fired 177 | . 28 32 35 . 29 53 Gun 150 | . 28 32 33 . 7 50 Cannon 22 | . . . . . 19 3 Launcher 5 | . . . 2 . 3 . Special . | . . . . . . . Kinetic 110 | . 19 17 18 . 18 38 Thermal 55 | . 2 15 15 . 8 15 Explosive 5 | . . . 2 . 3 . Electromagnetic 7 | . 7 . . . . . Robot Hit Streak 7 | . 4 5 5 . 4 7 Robot Miss Streak 5 | . 4 5 2 . 3 5 Penetration Max . | . . . . . . . Secondary Targets 2 | . . . 2 . . . Max Gunslinging Chain 1 | . . . 1 . . . Shots Hit Robots 113 | . 13 18 21 . 28 33 Core Hits 70 | . 10 10 14 . 23 13 Critical Kills . | . . . . . . . Critical Parts Destroyed 1 | . . . . . . 1 Critical Strikes 2 | . . . . . 1 1 Destroy 1 | . . . . . . 1 Sever 1 | . . . . . 1 . Melee Attacks 20 | . . . . . 18 2 Impact 6 | . . . . . 6 . Slashing 14 | . . . . . 12 2 Piercing . | . . . . . . . Sneak Attacks 3 | . . . . . 3 . Combat Hostiles . | . . . . . . . Follow-up Attacks . | . . . . . . . Damage Inflicted 3710 | . 130 237 413 . 2109 821 Guns 1208 | . 130 237 304 . 42 495 Cannons 637 | . . . . . 401 236 Explosions 1230 | . . . 109 . 1062 59 Melee 635 | . . . . . 604 31 Ramming . | . . . . . . . Kinetic 1009 | . 90 103 143 . 234 439 Thermal 1573 | . . 134 161 . 927 351 Explosive 453 | . . . 109 . 344 . Electromagnetic 40 | . 40 . . . . . Impact 134 | . . . . . 134 . Slashing 501 | . . . . . 470 31 Piercing . | . . . . . . . Highest Corruption 4 | . . . . . . 4 Average Corruption 3 | . . . . . . 3 Corruption Purged . | . . . . . . . Corruption Blocked . | . . . . . . . Effects 5 | . . . . . . 5 Message Errors 1 | . . . . . . 1 Energy Discharges 1 | . . . . . . 1 Data Loss (minor) 3 | . . . . . . 3 Overload Shots . | . . . . . . . Overflow Damage 182 | . . . . . 150 32 Projectiles 34 | . . . . . 34 . Explosions 84 | . . . . . 52 32 Melee 64 | . . . . . 64 . Knockbacks 2 | . . . . . 2 . Impact 1 | . . . . . 1 . Kinetic 1 | . . . . . 1 . Secondary . | . . . . . . . Self-Inflicted Damage 235 | . . . . . 109 126 Shots 4 | . . . . . 2 2 Rammed . | . . . . . . . Targets Rammed . | . . . . . . . Kicked . | . . . . . . . Crushed . | . . . . . . . Highest Temperature 117 | . 68 38 3 . 117 93 Average Temperature 33 | . 22 10 2 . 49 26 Received Heat Transfer 1038 | . 123 183 102 . 432 198 Siege Activations . | . . . . . . . Robots Corrupted . | . . . . . . . Combat Hostiles . | . . . . . . . Parts Fried . | . . . . . . . Impact Corruptions 1 | . . . . . 1 . Robots Melted . | . . . . . . . Combat Hostiles . | . . . . . . . Parts Melted . | . . . . . . . Heat Transferred 1971 | . . 333 370 . 880 388 Parts Sabotaged . | . . . . . . . Parts Stolen . | . . . . . . . Parts Stripped . | . . . . . . . Power Chain Reactions . | . . . . . . . Alert | -11 -10 -9 -9 -9 -8 -8 ------- Run | Yrd Mat Mat Min Exi Min Mat Peak Influence 191 | . 80 175 190 . 139 191 Initial 60 | . . 13 60 . . 28 Average 62 | . 49 86 94 . 47 55 Maximum Alert Level . | . . . . . . . Low Security (%) 100 | 100 100 100 100 . 100 100 Level 1 . | . . . . . . . Level 2 . | . . . . . . . Level 3 . | . . . . . . . Level 4 . | . . . . . . . Level 5 . | . . . . . . . High Security . | . . . . . . . Max Security . | . . . . . . . Squads Dispatched 1 | . . 1 . . . . Investigation . | . . . . . . . Extermination . | . . . . . . . Reinforcement 1 | . . 1 . . . . Assault . | . . . . . . . Garrison . | . . . . . . . Intercept . | . . . . . . . Searches Triggered . | . . . . . . . Construction Impeded . | . . . . . . . Haulers Reinforced . | . . . . . . . Active Scanning Responses . | . . . . . . . Cargo Convoy Interrupts . | . . . . . . . Stealth | -11 -10 -9 -9 -9 -8 -8 --------- Run | Yrd Mat Mat Min Exi Min Mat Distress Signals 2 | . . 1 . . . 1 Communications Jammed . | . . . . . . . Distress Signals . | . . . . . . . Times Spotted 53 | . 8 13 7 . 14 11 Peak Tracking Total 7 | . 3 7 3 . 5 3 Tactical Retreats 2 | . . . . . 1 1 Traps | -11 -10 -9 -9 -9 -8 -8 ------- Run | Yrd Mat Mat Min Exi Min Mat Traps Triggered 4 | . . . . . . 4 Indirectly . | . . . . . . . Trap Hack Attempts . | . . . . . . . Triggered . | . . . . . . . Disarmed . | . . . . . . . Reprogrammed . | . . . . . . . Reused . | . . . . . . . Traps Extracted . | . . . . . . . Installed . | . . . . . . . Triggered . | . . . . . . . Machines | -11 -10 -9 -9 -9 -8 -8 ---------- Run | Yrd Mat Mat Min Exi Min Mat Machines Disabled 2 | . . . . . . 2 Max in Single Turn 1 | . . . . . . 1 Machines Repaired . | . . . . . . . Machines Dismantled . | . . . . . . . Machines Sabotaged . | . . . . . . . Overloaded Fab Kills . | . . . . . . . Hacking | -11 -10 -9 -9 -9 -8 -8 --------- Run | Yrd Mat Mat Min Exi Min Mat Machines Accessed 8 | . 1 2 . 4 . 1 Terminals 4 | . 1 2 . . . 1 Fabricators . | . . . . . . . Repair Stations . | . . . . . . . Recycling Units . | . . . . . . . Scanalyzers . | . . . . . . . Garrison Access . | . . . . . . . Total Hacks 55 | . 1 3 . 49 . 2 Successful 53 | . 1 1 . 49 . 2 Failed 2 | . . 2 . . . . Catastrophic . | . . . . . . . Database Lockouts . | . . . . . . . Manual 10 | . . . . 9 . 1 Terminals 6 | . 1 3 . . . 2 Fabricators . | . . . . . . . Repair Stations . | . . . . . . . Recycling Units . | . . . . . . . Scanalyzers . | . . . . . . . Garrison Access . | . . . . . . . Terminal Hacks 53 | . 1 1 . 49 . 2 Record 51 | . . . . 49 . 2 Emergency Access Points 1 | . . 1 . . . . Recall Reinforcements 1 | . 1 . . . . . Fabricator Hacks . | . . . . . . . Repair Station Hacks . | . . . . . . . Recycling Unit Hacks . | . . . . . . . Scanalyzer . | . . . . . . . Garrison Access Hacks . | . . . . . . . Unauthorized Hacks . | . . . . . . . Terminals . | . . . . . . . Fabricators . | . . . . . . . Repair Stations . | . . . . . . . Recycling Units . | . . . . . . . Scanalyzers . | . . . . . . . Garrison Access . | . . . . . . . Data Cores Recovered 1 | . 1 . . . . . Used . | . . . . . . . Hacking Detections 3 | . 1 1 . . . 1 Full Trace Events . | . . . . . . . Feedback Events . | . . . . . . . Feedback Blocked . | . . . . . . . Robot Schematics Acquired . | . . . . . . . Robots Built . | . . . . . . . Authchips . | . . . . . . . Time . | . . . . . . . Total Robot Build Rating . | . . . . . . . Part Schematics Acquired . | . . . . . . . Parts Built . | . . . . . . . Authchips . | . . . . . . . Time . | . . . . . . . Total Part Build Rating . | . . . . . . . Parts Repaired . | . . . . . . . Time . | . . . . . . . Parts Recycled . | . . . . . . . Recycled Matter . | . . . . . . . Retrieved Matter . | . . . . . . . Retrieved Components . | . . . . . . . Parts Scanalyzed . | . . . . . . . Part Schematics Acquired . | . . . . . . . Parts Damaged . | . . . . . . . Bothacking | -11 -10 -9 -9 -9 -8 -8 ------------ Run | Yrd Mat Mat Min Exi Min Mat Used RIF Installer . | . . . . . . . Robots Hacked . | . . . . . . . Non-combat . | . . . . . . . Combat . | . . . . . . . Robot Hacks Applied . | . . . . . . . Relay Couplers Released . | . . . . . . . Fabnet Peak Effective % . | . . . . . . . Robots Rewired . | . . . . . . . Allies Hacked . | . . . . . . . Hacks Repelled . | . . . . . . . Allies | -11 -10 -9 -9 -9 -8 -8 -------- Run | Yrd Mat Mat Min Exi Min Mat Total Allies . | . . . . . . . Largest Group . | . . . . . . . Highest-Rated Group . | . . . . . . . Highest-Rated Ally . | . . . . . . . Total Orders . | . . . . . . . Ally Attacks . | . . . . . . . Total Damage . | . . . . . . . Kills . | . . . . . . . Allies Corrupted . | . . . . . . . Allies Melted . | . . . . . . . Intel | -11 -10 -9 -9 -9 -8 -8 ------- Run | Yrd Mat Mat Min Exi Min Mat Robot Analysis Total . | . . . . . . . Derelict Logs Recovered 1 | . . . 1 . . . Drone Launches . | . . . . . . . Drone Recoveries . | . . . . . . . Exploration | -11 -10 -9 -9 -9 -8 -8 ------------- Run | Yrd Mat Mat Min Exi Min Mat Turns Passed 4448 | 59 525 284 810 946 1124 700 Spaces Moved 3098 | 48 387 189 621 760 848 245 Core 22 | 13 . . . . 4 5 Treads . | . . . . . . . Legs 2339 | 35 387 189 621 760 107 240 Wheels 737 | . . . . . 737 . Hover . | . . . . . . . Flight . | . . . . . . . Fastest Speed 50 | 50 120 120 120 120 90 120 Average Speed 125 | 101 120 120 120 123 107 222 Slowest Speed 400 | 120 120 120 120 190 300 400 Overloaded Moves . | . . . . . . . Propulsion Burnouts . | . . . . . . . Robots Hopped . | . . . . . . . Cave-ins Triggered . | . . . . . . . Exploration Rate (%) 54 | 3 51 23 88 91 99 26 Regions Visited 6 Branch Regions 3 Pre-discovered Areas 1 | . . . . 1 . . Known Exits Taken . | . . . . . . . Unknown Exits Taken 6 | 1 1 1 1 1 1 . Scrap Searched 3 | . . . 1 . 2 . Spaces Dug . | . . . . . . . Terrain Destroyed 155 | . . . 30 . 77 48 Melee . | . . . . . . . Projectile 6 | . . . . . 6 . AOE 149 | . . . 30 . 71 48 Terrain Rammed . | . . . . . . . Walls Destroyed . | . . . . . . . Machines Disabled . | . . . . . . . Actions | -11 -10 -9 -9 -9 -8 -8 --------- Run | Yrd Mat Mat Min Exi Min Mat Total 3453 | 58 424 216 651 770 991 343 Wait 99 | . 6 . . . 62 31 Move 3092 | 47 386 188 620 759 847 245 Hop . | . . . . . . . Pick Up 50 | 5 7 4 6 4 15 9 Fast Attach 2 | 1 . . . . 1 . Attach 42 | 5 3 2 3 1 15 13 Detach 3 | . 1 . . 1 1 . Swap 11 | . 1 3 2 1 3 1 Drop 17 | . 1 2 2 4 7 1 Fire 118 | . 19 17 18 . 23 41 Melee 19 | . . . . . 17 2 Ram . | . . . . . . . Kick . | . . . . . . . Crush . | . . . . . . . Escape Stasis . | . . . . . . . Rewire . | . . . . . . . Trap . | . . . . . . . Miscellaneous . | . . . . . . . Route ------- -11/Scrapyard -10/Materials (discovered 3 exits: *Mat x2 / [*Min]) -9/Materials (discovered 2 exits: [*Min] / [*Sto]) -9/Mines (discovered 2 exits: *Mat / *Exi) -9/Exiles (discovered 2 exits: [*Min x2]) -8/Mines (discovered 2 exits: *Mat x2) -8/Materials History --------- Turn | Location | Event 5 | -11/Scrapyard | Discovered new exit (range 15) 60 | -11/Scrapyard | Entered Materials 250 | -10/Materials | Discovered new exit (range 7) 302 | -10/Materials | Discovered new exit (range 8) 311 | -10/Materials | Build established: Mutant 410 | -10/Materials | Discovered new exit (range 16) 585 | -10/Materials | Entered another Materials area 585 | -9/Materials | Evolved 2 slots: Utility x2 842 | -9/Materials | Discovered new exit (range 16) 854 | -9/Materials | Discovered new exit (range 12) 869 | -9/Materials | Entered Mines 888 | -9/Mines | Met a Derelict bent on vengeance 898 | -9/Mines | Received a Rocket Launcher from a helpful Derelict 1108 | -9/Mines | Learned Materials stockpile data 1258 | -9/Mines | Deemed a non-threat by the Exiles lab entrance 1258 | -9/Mines | Discovered new exit (range 5) 1420 | -9/Mines | Found a damaged Exp. Sensor Array with a note attached 1422 | -9/Mines | Found Prototype Device 1423 | -9/Mines | Identified Exp. Sensor Array 1502 | -9/Mines | Discovered new exit (range 14) 1679 | -9/Mines | Entered Exiles 1710 | -9/Exiles | Discovered new exit (range 14) 1727 | -9/Exiles | Met 8R-AWN 1746 | -9/Exiles | Met EX-HEX 1794 | -9/Exiles | Met EX-DEC 1833 | -9/Exiles | Visited The Gauntlet 1983 | -9/Exiles | Learned location of Zion (-6) 2030 | -9/Exiles | Discovered new exit (range 14) 2118 | -9/Exiles | Met EX-BIN 2153 | -9/Exiles | Aligned with FarCom system 2154 | -9/Exiles | Given EX-Vault access code 2420 | -9/Exiles | Opened EX-Vault 2439 | -9/Exiles | Found Prototype Energy Cannon 2505 | -9/Exiles | Warned to stay clear of 0b10 Research branches 2553 | -9/Exiles | Identified YOLO Cannon 2625 | -9/Exiles | Left Exiles lab with YOLO Cannon 2625 | -9/Exiles | Entered Mines 3175 | -8/Mines | Build established: Scavenger-Assassin 3306 | -8/Mines | Core integrity fell below 50% 3352 | -8/Mines | Lost 4 parts (1u3w) 3472 | -8/Mines | Discovered new exit (range 13) 3732 | -8/Mines | Discovered new exit (range 5) 3738 | -8/Mines | Core integrity fell below 20% 3749 | -8/Mines | Entered Materials 3749 | -8/Materials | Evolved 2 slots: Power x1, Weapon x1 4140 | -8/Materials | Lost 6 parts (1p1n2u2w) 4431 | -8/Materials | Core integrity fell below 50% 4431 | -8/Materials | Core integrity fell below 20% 4449 | -8/Materials | Destroyed by Y-45 Defender with Beam Rifle Last Messages --------------- Imp. Deuterium Engine destroyed. Carbon-fiber Leg destroyed. Core damaged (-162). Sml. Storage Unit destroyed. Critical hit (Burn: +37). Slug penetrates Y-45 Defender. Slug penetrates G-47 Trooper. G-47 Trooper suffers critical hit (Destroy). Destroyed Aluminum Leg. U-05 Engineer lays Concrete. U-05 Engineer builds a Wall. Slug penetrates Y-45 Defender. U-05 Engineer lays Concrete. Slug penetrates G-47 Trooper. U-05 Engineer builds a Wall. G-47 Trooper destroyed. U-05 Engineer lays Concrete. U-05 Engineer destroyed. U-05 Engineer lays Concrete. U-05 Engineer builds a Wall. Map ----- +----------------------------------------------------+ | ?????????????????????????????????????????????????? | | ?????????????????????????????????????????????????? | | ?????????????????????????????????????????????????? | | ?????????????????????????????????????????????????? | | ?????????????????????????????????????????????????? | | ?????????????????????????????????????????????????? | | ?????????????????????????????????????????????????? | | ?????????????????????????????????????????????????? | | ?????????????????????????????????????????????????? | | ?????????????????????????????????????????????????? | | ?????????????????????????????????????????????????? | | ???????????????????????? ????????????????????????? | | ?????????????????????????????????????????????????? | | ?????????????????????????????????????????????????? | | ???????????????????????????????????#?????????????? | | ????????????????????????? ?????????##????????????? | | ??????????????????????#?????????????#????????????? | | ????????????????????????????????????#????????????? | | ?????????????????????????????????????????????????? | | ?????????????????????????????????????????????????? | | ????????????????????????#????????????????????????? | | ??????????????????#???#######??#???#?????????????? | | ???????????g??????#??## #????????????????????? | | ???????????? ###########;;;;#????????????????????? | | ?????????? [%! u ;##???????????????????? | | ??????????Y * =%! @ ; #??#?#??????????????? | | ?????????? = ;##???????????????????? | | ?????????????##### ####; # ##????????#?????????? | | ???????????#?????? ?###; u###???###??????#??????? | | ?????????????????? ???## u##?? ??#???????????? | | ?????????????????? #???# #?? #???????????? | | ?????? ??????????? ????# ## #???????????? | | ?????????????????# #???# / #???????????? | | ?????????????????# #?#?# ## +???????????? | | ???????????? ?"??# #???### #?? #???????????? | | ???????????????"?# #######+#??? ??#???????????? | | ?? ????????????? # # #????? ????????????? | | ?????????????????# # #????? #???????????? | | ?????"???????????# # #?#????####???????????? | | ?????????????????# + #???#?????????????????? | | ????????#????#???# # #????????? ???????????? | | ???????????????### ##########?#??????????????????? | | ???????#???##### #???#?????#?????????????????? | | ???????????#!! # #######???#?????????????????? | | ???????????#!! # +?????????????????? | | ???????????#!! # #######?????????????????????? | | ?????????#?# # #??????????#????????????????? | | ?#?????????# !## ##########???????????????????? | | ??########## ## #! #????????????????????? | | ??# ## ## # """ #????????????????????? | +----------------------------------------------------+ Best States ------------- Heat Dissipation 50 Energy Generation 29 Energy Capacity 340 Matter Stores 300 Matter Capacity 300 Sight Range 16 Robot Scan Range 20 Terrain Scan Range 16 Terrain Scan Density 10 Core Shielding 20 Evasion (%) 55 Offensive Hacking 10 Item Schematics ----------------- None Robot Schematics ------------------ None Fabricated ------------ Nothing Alien Tech Used ----------------- None Achievements -------------- Librarian Challenges ------------ None Game ------ Seed ImprovedWarpSubcomponent Manual? 0 Play Time 00:47:49 Cumulative 9.1 hours Start 2024.04.25 @ 19:41:50 End 2024.04.25 @ 20:32:06 Sessions 1 Manual Loads 0 Difficulty Rogue Special Mode None Game No. 14 Rogue 14 Adventurer 0 Explorer 0 Win Type - Total 0 Types 0/0/0/0/0/0/0/0/0 Lore% 10 Gallery% 16 Achievement% 12 Wizard Run 0 Options --------- Layout 1 ASCII 0 Keyboard 0 Movement Mouse Keybinds 0 Fullscreen 1 Font 24/Smallcaps Map View 50x35 Zoom Use 0% Tactical HUD 0 Map Filters NONE Filters NONE Steam 1 RUN: c81b4c06-80fd-49e1-9afb-e4b1c21dfcd3